fUSD/lending_fUSD_20240505
["ID","MTS","AMOUNT","RATE_DAILY","PERIOD"]
[326442098,1714911046515,-573.43013765,0.0003,2]
[326442105,1714911737200,-180.0,0.00030143,120]
[326442106,1714911737227,-169.78,0.00030143,120]
[326442132,1714912232212,-2560.78189754,0.00017259,2]
[326442133,1714912232224,-416.21984759,0.00017259,2]
[326442134,1714912232234,-450.0,0.00018,3]
[326442135,1714912232243,-300.0,0.00019451,2]
[326442136,1714912232252,-500.0,0.0002,3]
[326442137,1714912232263,-939.27358723,0.00020574,2]
[326442143,1714912232332,-60.72641277,0.00020574,2]
[326442145,1714912232341,-155.0,0.000209,2]
[326442147,1714912232350,-562.99,0.00021237,2]
[326442149,1714912232359,-156.40008734,0.00021237,2]
[326442151,1714912232370,-2382.20991266,0.00021237,2]
[326442153,1714912232379,-499.99,0.00021237,2]
[326442155,1714912232389,-5335.67,0.00021237,2]
[326442157,1714912232398,-299.99,0.00021237,7]
[326442159,1714912232406,-1000.0,0.00021237,2]
[326442160,1714912232415,-154.52925106,0.00021992,2]
[326442161,1714912232424,-550.0,0.00022,3]
[326442162,1714912232433,-150.99,0.00022,2]
[326442163,1714912232442,-154.19264566,0.00022073,2]
[326442164,1714912232451,-156.53848966,0.00022671,2]
[326442165,1714912232459,-154.52925106,0.00022708,2]
[326442166,1714912232468,-154.52925106,0.00023044,2]
[326442167,1714912232478,-441.0,0.000233,2]
[326442168,1714912232487,-155.59826711,0.00023936,2]
[326442169,1714912232496,-154.52925106,0.00023984,2]
[326442171,1714912232506,-600.0,0.00024,3]
[326442173,1714912232515,-175.78,0.00024114,2]
[326442175,1714912232524,-155.59826711,0.00024546,2]
[326442177,1714912232533,-15161.02771781,0.00025,2]
[326442179,1714912232544,-317.625,0.00025,2]
[326442195,1714912237971,-9797.85808281,0.00025,2]
[326442196,1714912237983,-2470.43890567,0.00025,2]
[326442197,1714912237996,-715.5495421,0.00025,2]
[326442198,1714912238008,-383.65,0.00025,2]
[326442199,1714912238020,-261.9,0.00025,2]
[326442200,1714912238032,-849.33,0.00025,2]
[326442201,1714912238044,-325.82,0.00025,2]
[326442202,1714912238165,-893.83705616,0.00025,2]
[326442203,1714912238177,-1246.48935952,0.00025,2]
[326442204,1714912238199,-3637.20517682,0.00025,2]
[326442205,1714912238218,-2193.97024957,0.00025,2]
[326442206,1714912238230,-1133.4033599,0.00025,2]
[326442207,1714912238239,-2889.3132245,0.00025195,2]
[326442208,1714912238273,-544.49802541,0.00025195,2]
[326442209,1714912238284,-278.09875009,0.00025195,2]
[326442210,1714912238294,-200.0,0.00025425,2]
[326442211,1714912238303,-100.79672991,0.00025575,2]
[326442219,1714912240132,-53.73252115,0.00025575,2]
[326442220,1714912240142,-740.18,0.00025726,2]
[326442221,1714912240152,-650.0,0.00026,3]
[326442222,1714912240162,-156.53848966,0.00026065,2]
[326442223,1714912240172,-155.55003069,0.00026495,2]
[326442224,1714912240182,-154.52925106,0.00026957,2]
[326442225,1714912240192,-155.55003069,0.00027051,2]
[326442226,1714912240202,-155.18160784,0.00027248,2]
[326442227,1714912240212,-155.59826711,0.00027325,2]
[326442228,1714912240223,-5006.0,0.00027397,7]
[326442229,1714912240234,-153.92179106,0.00027994,2]
[326442230,1714912240244,-700.0,0.00028,3]
[326442231,1714912240254,-154.52925106,0.00029267,2]
[326442232,1714912240444,-153.92179106,0.00029675,2]
[326442233,1714912240460,-1560.96410363,0.00029744,2]
[326442234,1714912240470,-3499.0404575,0.00029762,2]
[326442235,1714912240480,-155.98760118,0.00029799,2]
[326442236,1714912240490,-156.53848966,0.00029855,2]
[326442237,1714912240499,-158.7404,0.000299,2]
[326442238,1714912240509,-7136.4941,0.000299,2]
[326442239,1714912240519,-1379.51765721,0.000299,2]
[326442240,1714912240529,-897.85974474,0.000299,2]
[326442241,1714912240539,-529.0,0.0002997,15]
[326442242,1714912240548,-755.0,0.0002997,15]
[326442243,1714912240557,-529.0,0.0002998,15]
[326442244,1714912240567,-755.0,0.0002998,15]
[326442245,1714912240577,-529.0,0.0002999,15]
[326442246,1714912240587,-755.0,0.0002999,15]
[326442247,1714912240596,-150.3,0.00029992,2]
[326442248,1714912240606,-300.0,0.00029999,2]
[326442249,1714912240616,-65986.5004863,0.0003,2]
[326442250,1714912240657,-658.89701571,0.0003,2]
[326442259,1714912246598,-320.522,0.00029039,2]
[326442260,1714912246608,-840.21783021,0.0003,2]
[326442261,1714912246623,-2719.8,0.0003,2]
[326442262,1714912246637,-3314.19,0.0003,2]
[326442267,1714912310250,166.89,0.00030143,120]
[326442269,1714912407435,180.0,0.00030143,120]
[326442276,1714912700843,-155.0,0.00012899,2]
[326442277,1714912700868,-168.83467777,0.000129,2]
[326442278,1714912700890,-4676.16532223,0.00012999,2]
[326442279,1714912759145,4000.0,0.0001,2]
[326442280,1714912759167,1326.08251549,0.0001,2]
[326442282,1714912884613,-155.0,0.00012998,2]
[326442283,1714912884640,-59.11582688,0.00012999,2]
[326442284,1714912884673,-43236.28657312,0.00013,2]
[326442285,1714912936803,-838.00242834,0.000129,2]
[326442286,1714912936825,-220.14399689,0.00012999,2]
[326442287,1714912936847,-2483.96798409,0.00012999,2]
[326442288,1714912936874,-6653.67149068,0.00013,2]
[326442290,1714913131461,2000.0,0.000303,45]
[326442291,1714913149230,2000.0,0.000303,45]
[326442292,1714913152475,2000.0,0.000303,45]
[326442293,1714913155098,2000.0,0.000303,45]
[326442294,1714913156175,-1415.0,0.00012998,2]
[326442295,1714913158124,2000.0,0.000303,45]
[326442296,1714913159365,2000.0,0.000303,45]
[326442297,1714913165040,4000.0,0.000303,45]
[326442298,1714913166449,4000.0,0.000303,45]
[326442299,1714913177247,4653.11,0.000303,45]
[326442300,1714913189609,2000.0,0.0001194,2]
[326442315,1714913432217,-1997.34565301,0.00012899,2]
[326442316,1714913432227,-782.13559984,0.000129,2]
[326442317,1714913432237,-6729.88390198,0.00012998,2]
[326442318,1714913432246,-258.50204535,0.00012999,2]
[326442319,1714913432256,-155.30912341,0.00012999,2]
[326442320,1714913432265,-31988.59239496,0.00013,2]
[326442321,1714913432281,-10593.59903926,0.00013,2]
[326442322,1714913432329,-127740.9999999,0.00013,2]
[326442331,1714913438163,-1916.9753,0.00013,2]
[326442332,1714913438174,-4077.14185465,0.00013,2]
[326442333,1714913438324,-1948.49834025,0.00013,2]
[326442334,1714913440306,-72959.14744626,0.00013,2]
[326442335,1714913440335,-7776.66889702,0.00013,2]
[326442336,1714913440346,-7282.66282219,0.00013,2]
[326442337,1714913440739,-500.6643648,0.00013,2]
[326442338,1714913440751,-3742.25394438,0.00013,2]
[326442340,1714913440905,-532.79332808,0.00013,2]
[326442358,1714913443342,-2595.58041615,0.00013,2]
[326442359,1714913443353,-319.06,0.00013,2]
[326442360,1714913443374,-46115.38469206,0.00013,2]
[326442361,1714913443385,-39912.25572739,0.00013,2]
[326442362,1714913443396,-596.967552,0.00013,2]
[326442363,1714913443589,-3507.23,0.00013,2]
[326442364,1714913443606,-357.8994989,0.00013,2]
[326442365,1714913443663,-8397.66880694,0.00013,2]
[326442366,1714913443675,-9792.27436798,0.00013,2]
[326442367,1714913443687,-3191.5174042,0.00013,2]
[326442368,1714913443698,-3397.76989014,0.00013,2]
[326442369,1714913443709,-1117.63928077,0.00013,2]
[326442374,1714913446263,-5456.68684212,0.00013,2]
[326442375,1714913446275,-649.3866149,0.00013,2]
[326442376,1714913446287,-4030.75897368,0.00013,2]
[326442377,1714913446299,-1123.52599367,0.00013,2]
[326442378,1714913446319,-3024.13162565,0.00013,2]
[326442379,1714913446377,-1337.17389705,0.00013,2]
[326442380,1714913446388,-1647.09143245,0.00013,2]
[326442381,1714913446434,-34485.99263786,0.00013,2]
[326442382,1714913446445,-1150.4361965,0.00013,2]
[326442383,1714913446491,-150535.93785873,0.00013,2]
[326442399,1714914319123,166.17,0.00010203,2]
[326442403,1714914456573,298.47108253,0.00010203,2]
[326442404,1714914472568,209.27640198,0.00010203,2]
[326442405,1714914472592,89.19468055,0.00010203,2]
[326442406,1714914478282,422.8208092,9.183e-05,2]
[326442407,1714914481205,3487.98451025,0.00011921,2]
[326442408,1714914481237,1428.23047713,0.00011921,2]
[326442409,1714914490575,298.47108253,0.00010203,2]
[326442410,1714914512680,300.43500413,0.00011921,2]
[326442413,1714914586122,168.83467771,0.000119,2]
[326442428,1714914632389,-2218.37398119,0.00011997,2]
[326442429,1714914632404,-7504.5439211,0.00011998,2]
[326442430,1714914632420,-3182.71063495,0.00012,2]
[326442431,1714914632435,-1280.12,0.00012002,2]
[326442432,1714914632450,-217.6362756,0.00012018,2]
[326442433,1714914632481,-191.96850189,0.00012018,2]
[326442434,1714914632496,-11917.11131811,0.00012019,2]
[326442435,1714914632513,-3646.17630106,0.00012019,2]
[326442436,1714914632550,-25278.86131802,0.00012019,2]
[326442437,1714914632565,-150.0,0.00012019,2]
[326442438,1714914632581,-1000.0,0.00012021,2]
[326442439,1714914632597,-168.83467771,0.00012067,2]
[326442440,1714914632612,-20000.0,0.00012083,2]
[326442441,1714914632631,-250.0,0.00012083,2]
[326442442,1714914632646,-349.06,0.00012153,2]
[326442443,1714914632663,-168.83467771,0.00012233,2]
[326442444,1714914632677,-168.83467771,0.000124,2]
[326442445,1714914632693,-168.83467771,0.00012567,2]
[326442446,1714914632708,-168.83467771,0.00012733,2]
[326442447,1714914632723,-500.0,0.00012754,2]
[326442449,1714914632738,-158.2,0.00012756,2]
[326442450,1714914632753,-3499.0404575,0.0001279,2]
[326442451,1714914632769,-158.2,0.00012822,2]
[326442452,1714914632784,-807.56024817,0.00012839,2]
[326442453,1714914632798,-1173.46765146,0.0001287,2]
[326442454,1714914632813,-1485.27985,0.0001287,2]
[326442455,1714914632828,-158.2,0.00012889,2]
[326442456,1714914632843,-360.01550888,0.00012898,2]
[326442457,1714914632858,-20899.68832048,0.000129,2]
[326442458,1714914633783,-2266.184998,0.000129,2]
[326442459,1714914633795,-5102.55447251,0.000129,2]
[326442460,1714914633806,-2242.84149109,0.000129,2]
[326442461,1714914633817,-8589.99321792,0.000129,2]
[326442462,1714914633827,-6566.51754113,0.000129,2]
[326442463,1714914633845,-1066.29448189,0.000129,2]
[326442464,1714914633856,-544.02,0.000129,2]
[326442465,1714914633867,-350.0,0.000129,2]
[326442466,1714914633878,-615.25441392,0.000129,2]
[326442467,1714914633934,-1432.68764726,0.000129,2]
[326442468,1714914633946,-89425.2259158,0.000129,2]
[326442469,1714914633956,-168.83467771,0.000129,2]
[326442470,1714914633965,-158.2,0.00012955,2]
[326442471,1714914633975,-1913.04,0.00012975,2]
[326442472,1714914633984,-155.0,0.00012998,2]
[326442473,1714914633995,-581.29012555,0.00012999,2]
[326442474,1714914634005,-155.0,0.00012999,2]
[326442475,1714914634014,-339053.93415465,0.00013,2]
[326442476,1714914634026,-818.82444517,0.00013,2]
[326442477,1714914634037,-555.59877824,0.00013,2]
[326442478,1714914634048,-6014.45686953,0.00013,2]
[326442544,1714914638489,-19334.94020919,0.00013,2]
[326442548,1714914638501,-23734.24658897,0.00013,2]
[326442550,1714914638511,-21908.07,0.00013,2]
[326442552,1714914638520,-158.2,0.00013022,2]
[326442553,1714914638529,-158.2,0.00013088,2]
[326442554,1714914638539,-2296.47,0.00013115,2]
[326442555,1714914638548,-158.2,0.00013155,2]
[326442556,1714914638557,-158.2,0.00013221,2]
[326442557,1714914638567,-165.31,0.00013272,2]
[326442558,1714914638576,-14962.92,0.00013285,2]
[326442559,1714914638585,-158.2,0.00013288,2]
[326442560,1714914638594,-158.2,0.00013354,2]
[326442561,1714914638602,-158.2,0.00013421,2]
[326442562,1714914638613,-164.48,0.00013425,2]
[326442563,1714914638623,-857.11,0.00013434,2]
[326442564,1714914638632,-1000.0,0.00013523,2]
[326442565,1714914638641,-500.0,0.00013699,2]
[326442566,1714914638650,-200.0,0.00013699,2]
[326442567,1714914638663,-170.23,0.00014116,2]
[326442568,1714914638672,-158.03,0.00014508,2]
[326442569,1714914638681,-158.03,0.00014512,2]
[326442570,1714914638690,-158.03,0.00014516,2]
[326442571,1714914638699,-158.03,0.00014519,2]
[326442572,1714914638709,-158.03,0.00014523,2]
[326442573,1714914638718,-158.03,0.00014527,2]
[326442574,1714914638728,-158.03,0.00014531,2]
[326442575,1714914638737,-23900.0,0.00014531,2]
[326442576,1714914638746,-158.03,0.00014535,2]
[326442577,1714914638756,-158.03,0.00014539,2]
[326442578,1714914638765,-158.03,0.00014542,2]
[326442580,1714914638774,-158.03,0.00014546,2]
[326442581,1714914638783,-158.03,0.0001455,2]
[326442582,1714914638792,-158.03,0.00014554,2]
[326442583,1714914638800,-158.03,0.00014558,2]
[326442584,1714914638809,-158.03,0.00014561,2]
[326442585,1714914638818,-158.03,0.00014565,2]
[326442587,1714914638827,-158.03,0.00014569,2]
[326442588,1714914638836,-158.03,0.00014573,2]
[326442590,1714914638845,-158.03,0.00014577,2]
[326442591,1714914638854,-158.03,0.0001458,2]
[326442593,1714914638863,-1000.0,0.00015026,2]
[326442594,1714914638872,-1485.27985,0.0001537,2]
[326442595,1714914638881,-1000.0,0.00016529,2]
[326442596,1714914638890,-1485.27985,0.0001787,2]
[326442597,1714914638899,-450.0,0.00018,3]
[326442599,1714914638908,-1000.0,0.00018031,2]
[326442601,1714914638917,-158.58,0.00019178,2]
[326442603,1714914638927,-150.79,0.00019178,2]
[326442605,1714914638936,-155.0,0.0002,2]
[326442607,1714914638946,-500.0,0.0002,3]
[326442609,1714914638955,-1485.27985,0.0002037,2]
[326442610,1714914638964,-499.99,0.00020546,2]
[326442611,1714914638974,-155.0,0.000209,2]
[326442612,1714914638983,-250.0,0.00021918,2]
[326442613,1714914638993,-1016.0,0.00022,2]
[326442614,1714914639002,-550.0,0.00022,3]
[326442615,1714914639011,-200.0,0.00022247,2]
[326442616,1714914639020,-154.52925106,0.00022614,2]
[326442617,1714914639029,-1485.27985,0.0002287,2]
[326442618,1714914639039,-154.52925106,0.00022914,2]
[326442619,1714914639049,-1000.0,0.00023276,2]
[326442620,1714914639059,-1000.0,0.00023276,2]
[326442621,1714914639069,-1000.0,0.00023276,2]
[326442622,1714914639079,-1000.0,0.00023276,2]
[326442623,1714914639088,-1000.0,0.00023276,2]
[326442624,1714914639098,-1000.0,0.00023276,2]
[326442625,1714914639107,-1000.0,0.00023276,2]
[326442626,1714914639116,-1000.0,0.00023276,2]
[326442627,1714914639125,-1000.0,0.00023276,2]
[326442628,1714914639134,-1000.0,0.00023276,2]
[326442629,1714914639144,-1000.0,0.00023276,2]
[326442630,1714914639153,-1000.0,0.00023276,2]
[326442631,1714914639163,-1000.0,0.00023276,2]
[326442632,1714914639172,-1660.0,0.000238,2]
[326442633,1714914639182,-163.5,0.00023805,2]
[326442634,1714914639192,-600.0,0.00024,3]
[326442635,1714914639206,-246.0,0.0002403,2]
[326442636,1714914639216,-700.4862884,0.0002421,2]
[326442637,1714914639226,-180.0,0.0002423,2]
[326442638,1714914639235,-164.48,0.00024658,2]
[326442639,1714914639244,-20932.89587064,0.00025,2]
[326442640,1714914639261,-7645.1978705,0.00025,2]
[326442641,1714914639273,-834.65552858,0.00025,2]
[326442642,1714914639304,-9975.35518064,0.00025,2]
[326442643,1714914639313,-246.0,0.0002508,2]
[326442644,1714914639323,-829.99220016,0.0002509,2]
[326442645,1714914639333,-1485.27985,0.0002537,2]
[326442646,1714914639342,-158.58,0.00025379,2]
[326442647,1714914639352,-272.69956575,0.00025995,2]
[326442648,1714914639361,-650.0,0.00026,3]
[326442649,1714914639371,-246.0,0.0002613,2]
[326442650,1714914639381,-158.32485788,0.00026266,2]
[326442651,1714914639390,-164.72,0.00027068,15]
[326442652,1714914639399,-153.92179106,0.00027176,2]
[326442653,1714914639408,-246.0,0.0002718,2]
[326442654,1714914639417,-1177.0,0.00027183,2]
[326442655,1714914639427,-372.459,0.00027183,2]
[326442656,1714914639436,-296.975,0.00027183,2]
[326442657,1714914639445,-2157.99531481,0.00027183,2]
[326442663,1714914641425,-2437.20268519,0.00027183,2]
[326442664,1714914641435,-184.037,0.00027183,2]
[326442665,1714914641445,-150.29,0.00027397,2]
[326442666,1714914641458,-164.21330149,0.000275,2]
[326442667,1714914641467,-273.0,0.00027532,5]
[326442668,1714914641476,-163.5,0.00027772,2]
[326442669,1714914641485,-700.0,0.00028,3]
[326442670,1714914641494,-246.0,0.0002823,2]
[326442671,1714914641504,-150.29,0.0002831,2]
[326442672,1714914641513,-155.2105048,0.0002847,2]
[326442673,1714914641671,-154.52925106,0.00028523,2]
[326442674,1714914641687,-154.52925106,0.00028705,2]
[326442675,1714914641697,-154.52925106,0.00028864,2]
[326442676,1714914641707,-150.29,0.00029224,2]
[326442677,1714914641716,-4650.27402043,0.00029272,2]
[326442678,1714914641725,-246.0,0.0002928,2]
[326442679,1714914641735,-150.0,0.00029481,2]
[326442680,1714914641745,-165.964,0.00029481,2]
[326442681,1714914641755,-550.354,0.00029481,2]
[326442682,1714914641764,-542.0,0.00029481,2]
[326442683,1714914641773,-400.0,0.00029481,2]
[326442684,1714914641783,-300.0,0.00029899,2]
[326442685,1714914641792,-2488.8318122,0.00029899,2]
[326442686,1714914641803,-11.1681878,0.00029899,2]
[326442687,1714914641816,-2500.0,0.00029899,2]
[326442688,1714914641826,-2500.0,0.00029899,2]
[326442689,1714914641836,-2500.0,0.00029899,2]
[326442690,1714914641845,-2500.0,0.00029899,2]
[326442691,1714914641855,-1051.13124091,0.00029899,2]
[326442692,1714914641868,-1448.86875909,0.00029899,2]
[326442694,1714914641877,-2500.0,0.00029899,2]
[326442696,1714914641886,-2500.0,0.00029899,2]
[326442698,1714914641896,-2500.0,0.00029899,2]
[326442700,1714914641905,-2500.0,0.00029899,2]
[326442702,1714914641915,-2500.0,0.00029899,2]
[326442704,1714914641924,-2500.0,0.00029899,2]
[326442706,1714914641934,-2500.0,0.00029899,2]
[326442708,1714914641943,-2500.0,0.00029899,2]
[326442710,1714914641952,-1049.03803223,0.00029899,2]
[326442713,1714914641972,-365.815,0.00029899,2]
[326442716,1714914641995,-263.91281523,0.00029899,2]
[326442721,1714914642026,-821.23415254,0.00029899,2]
[326442722,1714914642036,-865.27559271,0.00029899,2]
[326442725,1714914642051,-1181.22,0.00029899,2]
[326442778,1714914646585,-876.59854396,0.0001299,2]
[326442779,1714914646594,-902.81293635,0.00017259,2]
[326442780,1714914646694,-1627.02568423,0.00017259,2]
[326442781,1714914646705,-453.50440729,0.00029899,2]
[326442782,1714914646714,-2500.0,0.00029899,2]
[326442783,1714914646723,-679.76189241,0.00029899,2]
[326442784,1714914646773,-889.14929002,0.00029899,2]
[326442790,1714914967165,332.18,0.00025888,120]
[326442791,1714914967209,332.18,0.00029123,120]
[326442957,1714915831715,-448.74875887,0.00012565,2]
[326442958,1714915831729,-1769.62522232,0.00012565,2]
[326442960,1714915831738,-1997.34565301,0.00012566,2]
[326442961,1714915831747,-155.0,0.00012567,2]
[326442962,1714915831756,-409.60477749,0.00012567,2]
[326442963,1714915831766,-194.65788438,0.00012568,2]
[326442964,1714915831775,-1010.03864664,0.00012568,2]
[326442965,1714915831787,-700.0,0.00012568,2]
[326442966,1714915831862,-2879.12803634,0.00012568,2]
[326442967,1714915831872,-566.162403,0.00012575,2]
[326442968,1714915831881,-126.55278443,0.00012578,2]
[326442969,1714915831903,-51.52824783,0.00012578,2]
[326442970,1714915831913,-155.8005,0.00012698,2]
[326442971,1714915831922,-48.64684646,0.00012798,2]
[326442972,1714915832241,-107.25311323,0.00012798,2]
[326442973,1714915832251,-40.92983208,0.00012798,2]
[326442974,1714915832273,-114.07016792,0.00012798,2]
[326442975,1714915832283,-885.67510047,0.00012798,2]
[326442976,1714915832292,-155.33847753,0.00012798,2]
[326442977,1714915832301,-176.88527498,0.00012798,2]
[326442978,1714915832311,-303.95983633,0.00012798,2]
[326442979,1714915832320,-155.43016056,0.00012798,2]
[326442980,1714915832330,-155.85257639,0.00012798,2]
[326442981,1714915832339,-288.81241473,0.00012798,2]
[326442982,1714915832349,-1798.73745493,0.00012799,2]
[326442983,1714915832358,-4877.093,0.000128,2]
[326442984,1714915832367,-47921.0757,0.000128,2]
[326442985,1714915832377,-4297.6801,0.00012875,2]
[326442986,1714915832386,-3634.0104,0.0001299,2]
[326442987,1714915832395,-499.99,0.0001299,2]
[326442988,1714915832404,-450.0,0.00018,3]
[326442989,1714915832413,-166.41,0.00018956,2]
[326442990,1714915832423,-170.99,0.00019178,2]
[326442991,1714915832432,-500.0,0.0002,3]
[326442992,1714915832441,-155.0,0.0002,2]
[326442993,1714915832450,-155.0,0.000209,2]
[326442994,1714915832459,-550.0,0.00022,3]
[326442995,1714915832468,-155.35452044,0.00022992,2]
[326442996,1714915832480,-23900.0,0.00023443,2]
[326442997,1714915832489,-154.19264566,0.00023599,2]
[326442998,1714915832498,-2000.0,0.00023651,2]
[326442999,1714915832508,-380.03,0.00023774,2]
[326443000,1714915832517,-164.48,0.00023899,2]
[326443001,1714915832527,-600.0,0.00024,3]
[326443002,1714915832537,-432.19516782,0.00024,2]
[326443003,1714915832547,-250.0,0.00024035,2]
[326443004,1714915832556,-1500.0,0.00024074,2]
[326443005,1714915832566,-492.27,0.00024203,2]
[326443006,1714915832575,-200.0,0.00024214,2]
[326443007,1714915832586,-1737.0,0.000244,2]
[326443008,1714915832594,-443.0,0.000244,2]
[326443009,1714915832603,-250.0,0.00024404,2]
[326443010,1714915832613,-154.52925106,0.00024553,2]
[326443011,1714915832622,-2000.0,0.00024557,3]
[326443012,1714915832631,-13685.62,0.00024597,2]
[326443013,1714915832641,-10000.0,0.0002466,2]
[326443014,1714915832650,-5440.8741,0.000249,2]
[326443015,1714915832660,-2615.43079908,0.00025,2]
[326443016,1714915832669,-31271.57866489,0.00025,2]
[326443017,1714915832681,-914.52340114,0.00025,2]
[326443063,1714915837763,-2429.4137431,0.00025,2]
[326443068,1714915837803,-321.8,0.00025,2]
[326443070,1714915837815,-518.91220379,0.00025,2]
[326443073,1714915837826,-3931.87643744,0.00025,2]
[326443075,1714915837835,-1241.56589157,0.00025001,2]
[326443076,1714915837848,-2080.64328198,0.00025001,2]
[326443077,1714915837863,-197.15,0.00025755,2]
[326443078,1714915837873,-164.47,0.00025791,2]
[326443079,1714915837883,-1000.0,0.00025851,2]
[326443080,1714915837892,-155.000001,0.00025866,2]
[326443081,1714915837901,-414.76,0.0002589,2]
[326443082,1714915837911,-180.49,0.00025909,2]
[326443083,1714915837920,-650.0,0.00026,3]
[326443084,1714915837929,-180.49,0.00026039,2]
[326443085,1714915837938,-155.59826712,0.0002609,2]
[326443086,1714915837948,-1241.56589148,0.00026101,2]
[326443087,1714915837957,-2080.64328195,0.00026101,2]
[326443088,1714915837966,-180.0,0.00026424,2]
[326443089,1714915837976,-154.27,0.00026723,2]
[326443090,1714915837985,-154.27,0.00026862,2]
[326443091,1714915837995,-154.27,0.00027001,2]
[326443092,1714915838003,-155.59826712,0.00027014,2]
[326443093,1714915838013,-164.72,0.00027068,15]
[326443094,1714915838022,-154.27,0.00027141,2]
[326443095,1714915838031,-1241.56589148,0.00027201,2]
[326443096,1714915838040,-2080.64328195,0.00027201,2]
[326443098,1714915838049,-154.27,0.0002728,2]
[326443100,1714915838058,-1266.72867064,0.00027303,2]
[326443102,1714915838068,-150.34,0.00027397,2]
[326443104,1714915838076,-154.27,0.00027419,2]
[326443106,1714915838086,-155.95726113,0.00027547,2]
[326443107,1714915838095,-154.27,0.00027558,2]
[326443108,1714915838104,-154.27,0.00027698,2]
[326443109,1714915838114,-154.52925106,0.00027833,2]
[326443110,1714915838123,-154.27,0.00027837,2]
[326443111,1714915838133,-427.52379173,0.00027846,2]
[326443112,1714915838142,-154.27,0.00027976,2]
[326443113,1714915838151,-154.27,0.00028115,2]
[326443114,1714915838160,-1241.56589148,0.00028302,2]
[326443115,1714915838170,-2080.64328195,0.00028302,2]
[326443116,1714915838179,-150.34,0.0002831,2]
[326443117,1714915838191,-164.47,0.0002837,2]
[326443118,1714915838201,-168.5402642,0.00028453,2]
[326443119,1714915838211,-756.3374,0.0002864,2]
[326443120,1714915838222,-1244.2252,0.00028642,2]
[326443121,1714915838235,-153.92179106,0.00028642,2]
[326443122,1714915838245,-155.0,0.00028738,2]
[326443123,1714915838254,-786.99155585,0.00028738,2]
[326443124,1714915838263,-157.75242174,0.00028738,2]
[326443125,1714915838275,-414.76567386,0.00028739,2]
[326443126,1714915838286,-388.49778572,0.00028739,2]
[326443127,1714915838297,-256.88507236,0.00028739,2]
[326443128,1714915838306,-241.31138284,0.00028739,2]
[326443129,1714915838316,-215.60230892,0.00028739,2]
[326443130,1714915838325,-156.17914788,0.0002874,2]
[326443131,1714915838335,-413.06779798,0.0002874,2]
[326443132,1714915838344,-177.08401672,0.0002874,2]
[326443133,1714915838354,-1268.70331986,0.0002874,2]
[326443134,1714915838364,-247.97942494,0.0002874,2]
[326443135,1714915838374,-311.39599109,0.00028741,2]
[326443136,1714915838384,-1000.0,0.00028847,2]
[326443137,1714915838393,-10000.0,0.00028947,2]
[326443138,1714915838402,-3142.267,0.00028981,2]
[326443139,1714915838412,-2302.491,0.00028981,2]
[326443140,1714915838421,-1397.818,0.00028981,2]
[326443141,1714915838430,-972.257,0.00028981,2]
[326443142,1714915838440,-1376.609,0.00028981,2]
[326443143,1714915838450,-5739.0,0.00028981,2]
[326443144,1714915838460,-288.0,0.00028981,2]
[326443145,1714915838469,-5901.0,0.00028981,2]
[326443146,1714915838480,-24602.527,0.00028981,2]
[326443147,1714915838489,-2292.0,0.00028981,2]
[326443148,1714915838499,-542.0,0.00028981,2]
[326443149,1714915838508,-1260.514,0.00028981,2]
[326443150,1714915838519,-563.69488817,0.00029,2]
[326443151,1714915838528,-1000.0,0.00029082,2]
[326443152,1714915838538,-335.50042478,0.00029123,7]
[326443153,1714915838548,-298.47108253,0.00029123,2]